[Event "SS Manhem Chess Week 2022: Goteborg Open"]
[Site "Schackcentrum, Vegagatan 20, Gothenburg, Sweden"]
[Date "2022.08.13"]
[Round "5.2"]
[White "Johansson, William"]
[Black "Heimisson, Hilmir Freyr"]
[Result "0-1"]
[TimeControl "15 minutes + 5 seconds per move from move one (Round 1 - 4) / 90 minutes + 30 seconds per move from move one (Round 5 - 8)"]
[BlackTitle "IM"]
[WhiteFideId "1744070"]
[BlackFideId "2309998"]
[WhiteElo "2015"]
[BlackElo "2323"]

1. d4 {[%clk 01:30:55]} {[%emt 00:00:04]} Nf6 {[%clk 01:30:51]} {[%emt
00:00:08]} 2. Nf3 {[%clk 01:31:15]} {[%emt 00:00:12]} d5 {[%clk 01:30:52]}
{[%emt 00:00:28]} 3. c3 {[%clk 01:31:35]} {[%emt 00:00:10]} e6 {[%clk
01:26:41]} {[%emt 00:04:40]} 4. Bf4 {[%clk 01:31:29]} {[%emt 00:00:37]} c5
{[%clk 01:26:12]} {[%emt 00:00:59]} 5. e3 {[%clk 01:31:24]} {[%emt 00:00:35]}
Nc6 {[%clk 01:26:29]} {[%emt 00:00:13]} 6. Nbd2 {[%clk 01:28:44]} {[%emt
00:03:11]} cxd4 {[%clk 01:26:43]} {[%emt 00:00:16]} 7. exd4 {[%clk 01:28:17]}
{[%emt 00:00:56]} Nh5 {[%clk 01:27:01]} {[%emt 00:00:12]} 8. Bg3 {[%clk
01:25:16]} {[%emt 00:03:32]} Nxg3 {[%clk 01:21:18]} {[%emt 00:06:12]} 9. hxg3
{[%clk 01:25:44]} {[%emt 00:00:03]} Bd6 {[%clk 01:21:31]} {[%emt 00:00:17]} 10.
Bd3 {[%clk 01:25:51]} {[%emt 00:00:23]} h6 {[%clk 01:17:56]} {[%emt 00:04:05]}
11. g4 {[%clk 01:24:29]} {[%emt 00:01:52]} Qe7 {[%clk 01:13:41]} {[%emt
00:04:45]} 12. Qe2 {[%clk 01:23:34]} {[%emt 00:01:25]} Bd7 {[%clk 01:09:03]}
{[%emt 00:05:07]} 13. Ne5 {[%clk 01:15:41]} {[%emt 00:08:23]} O-O-O {[%clk
00:49:38]} {[%emt 00:19:54]} 14. Ndf3 {[%clk 01:00:56]} {[%emt 00:15:15]} Kb8
{[%clk 00:47:49]} {[%emt 00:02:19]} 15. Nxc6+ {[%clk 00:57:35]} {[%emt
00:03:52]} Bxc6 {[%clk 00:46:55]} {[%emt 00:01:22]} 16. Ne5 {[%clk 00:57:58]}
{[%emt 00:00:08]} Qc7 {[%clk 00:46:16]} {[%emt 00:01:09]} 17. Nxc6+ {[%clk
00:40:36]} {[%emt 00:17:52]} Qxc6 {[%clk 00:45:52]} {[%emt 00:00:54]} 18. O-O-O
{[%clk 00:40:47]} {[%emt 00:00:18]} Rc8 {[%clk 00:38:36]} {[%emt 00:07:47]} 19.
Kb1 {[%clk 00:40:27]} {[%emt 00:00:50]} Rhd8 {[%clk 00:38:25]} {[%emt
00:00:40]} 20. g5 {[%clk 00:38:01]} {[%emt 00:02:55]} hxg5 {[%clk 00:38:03]}
{[%emt 00:00:53]} 21. Rh7 {[%clk 00:38:04]} {[%emt 00:00:28]} Bf8 {[%clk
00:30:06]} {[%emt 00:08:26]} 22. Qe5+ {[%clk 00:27:49]} {[%emt 00:10:45]} Rc7
{[%clk 00:30:10]} {[%emt 00:00:26]} 23. Qxg5 {[%clk 00:27:33]} {[%emt
00:00:46]} Rdc8 {[%clk 00:30:31]} {[%emt 00:00:09]} 24. Rhh1 {[%clk 00:20:49]}
{[%emt 00:07:14]} Qb6 {[%clk 00:30:14]} {[%emt 00:00:47]} 25. Ka1 {[%clk
00:19:49]} {[%emt 00:01:30]} Qa5 {[%clk 00:29:50]} {[%emt 00:00:53]} 26. Qd2
{[%clk 00:19:15]} {[%emt 00:01:03]} b5 {[%clk 00:28:10]} {[%emt 00:02:11]} 27.
Qc2 {[%clk 00:16:48]} {[%emt 00:02:58]} b4 {[%clk 00:21:51]} {[%emt 00:06:48]}
28. Qb3 {[%clk 00:16:25]} {[%emt 00:00:53]} Ka8 {[%clk 00:14:11]} {[%emt
00:08:10]} 29. cxb4 {[%clk 00:15:48]} {[%emt 00:01:07]} Bxb4 {[%clk 00:13:59]}
{[%emt 00:00:43]} 30. Kb1 {[%clk 00:15:16]} {[%emt 00:01:02]} Rb8 {[%clk
00:09:02]} {[%emt 00:05:27]} 31. Rc1 {[%clk 00:13:29]} {[%emt 00:02:17]} Bc3
{[%clk 00:08:28]} {[%emt 00:01:02]} 32. Rh8 {[%clk 00:06:09]} {[%emt 00:07:51]}
Rxh8 {[%clk 00:08:14]} {[%emt 00:00:45]} 33. Rxc3 {[%clk 00:06:29]} {[%emt
00:00:10]} Rxc3 {[%clk 00:08:30]} {[%emt 00:00:13]} 34. Qxc3 {[%clk 00:06:50]}
{[%emt 00:00:09]} Qxc3 {[%clk 00:08:54]} {[%emt 00:00:06]} 35. bxc3 {[%clk
00:07:14]} {[%emt 00:00:06]} Rh2 {[%clk 00:09:14]} {[%emt 00:00:09]} 0-1

[Event "SS Manhem Chess Week 2022: Goteborg Open"]
[Site "Schackcentrum, Vegagatan 20, Gothenburg, Sweden"]
[Date "2022.08.13"]
[Round "5.3"]
[White "Rasti, Arvin"]
[Black "Asbrink, Adam"]
[Result "1-0"]
[TimeControl "15 minutes + 5 seconds per move from move one (Round 1 - 4) / 90 minutes + 30 seconds per move from move one (Round 5 - 8)"]
[WhiteFideId "1741160"]
[BlackFideId "1767410"]
[WhiteElo "2156"]
[BlackElo "1977"]

1. d4 {[%clk 01:30:54]} {[%emt 00:00:05]} d5 {[%clk 01:30:51]} {[%emt
00:00:10]} 2. Nf3 {[%clk 01:31:05]} {[%emt 00:00:19]} Nf6 {[%clk 01:31:03]}
{[%emt 00:00:18]} 3. c4 {[%clk 01:31:25]} {[%emt 00:00:10]} c6 {[%clk
01:31:26]} {[%emt 00:00:07]} 4. Qc2 {[%clk 01:31:37]} {[%emt 00:00:18]} dxc4
{[%clk 01:30:34]} {[%emt 00:01:22]} 5. e4 {[%clk 01:31:52]} {[%emt 00:00:15]}
b5 {[%clk 01:30:12]} {[%emt 00:00:53]} 6. b3 {[%clk 01:32:11]} {[%emt
00:00:11]} cxb3 {[%clk 01:28:29]} {[%emt 00:02:13]} 7. axb3 {[%clk 01:32:33]}
{[%emt 00:00:08]} e6 {[%clk 01:22:46]} {[%emt 00:06:13]} 8. Bd2 {[%clk
01:32:04]} {[%emt 00:00:58]} a5 {[%clk 01:14:43]} {[%emt 00:08:33]} 9. Bd3
{[%clk 01:32:00]} {[%emt 00:00:33]} Be7 {[%clk 01:10:14]} {[%emt 00:05:00]} 10.
O-O {[%clk 01:31:48]} {[%emt 00:00:42]} h6 {[%clk 01:04:06]} {[%emt 00:06:38]}
11. Rc1 {[%clk 01:30:30]} {[%emt 00:01:48]} Bb7 {[%clk 01:03:57]} {[%emt
00:00:39]} 12. Nc3 {[%clk 01:30:44]} {[%emt 00:00:16]} Na6 {[%clk 00:53:14]}
{[%emt 00:11:13]} 13. Nxb5 {[%clk 01:30:26]} {[%emt 00:00:49]} cxb5 {[%clk
00:49:50]} {[%emt 00:03:54]} 14. Bxb5+ {[%clk 01:30:48]} {[%emt 00:00:08]} Kf8
{[%clk 00:50:06]} {[%emt 00:00:14]} 15. Bxa5 {[%clk 01:30:48]} {[%emt
00:00:29]} Qb8 {[%clk 00:42:45]} {[%emt 00:07:50]} 16. Ne5 {[%clk 01:29:56]}
{[%emt 00:01:22]} Bxe4 {[%clk 00:31:38]} {[%emt 00:11:38]} 17. Nd7+ {[%clk
01:27:18]} {[%emt 00:03:08]} Nxd7 {[%clk 00:31:57]} {[%emt 00:00:11]} 18. Qxe4
{[%clk 01:27:40]} {[%emt 00:00:08]} Nf6 {[%clk 00:31:23]} {[%emt 00:01:04]} 19.
Qc6 {[%clk 01:26:56]} {[%emt 00:01:14]} Kg8 {[%clk 00:30:50]} {[%emt 00:01:03]}
20. Bxa6 {[%clk 01:25:39]} {[%emt 00:01:47]} Kh7 {[%clk 00:29:00]} {[%emt
00:02:20]} 21. b4 {[%clk 01:16:59]} {[%emt 00:09:10]} Bxb4 {[%clk 00:29:09]}
{[%emt 00:00:22]} 22. Bxb4 {[%clk 01:16:41]} {[%emt 00:00:47]} Qxb4 {[%clk
00:29:29]} {[%emt 00:00:10]} 23. Bd3+ {[%clk 01:16:56]} {[%emt 00:00:15]} 1-0

[Event "SS Manhem Chess Week 2022: Goteborg Open"]
[Site "Schackcentrum, Vegagatan 20, Gothenburg, Sweden"]
[Date "2022.08.13"]
[Round "5.4"]
[White "Kasib, Laith"]
[Black "Eriksson, Joel"]
[Result "1-0"]
[TimeControl "15 minutes + 5 seconds per move from move one (Round 1 - 4) / 90 minutes + 30 seconds per move from move one (Round 5 - 8)"]
[WhiteTitle "FM"]
[WhiteFideId "4801059"]
[BlackFideId "1729233"]
[WhiteElo "2051"]
[BlackElo "1949"]

1. d4 {[%clk 01:25:14]} {[%emt 00:05:45]} f5 {[%clk 01:30:51]} {[%emt
00:00:08]} 2. c4 {[%clk 01:25:01]} {[%emt 00:00:43]} Nf6 {[%clk 01:31:12]}
{[%emt 00:00:10]} 3. g3 {[%clk 01:25:22]} {[%emt 00:00:08]} e6 {[%clk
01:31:21]} {[%emt 00:00:22]} 4. Bg2 {[%clk 01:25:44]} {[%emt 00:00:07]} Be7
{[%clk 01:31:32]} {[%emt 00:00:20]} 5. Nc3 {[%clk 01:26:05]} {[%emt 00:00:08]}
O-O {[%clk 01:31:47]} {[%emt 00:00:15]} 6. Nf3 {[%clk 01:26:30]} {[%emt
00:00:06]} d6 {[%clk 01:32:10]} {[%emt 00:00:07]} 7. O-O {[%clk 01:26:50]}
{[%emt 00:00:10]} Ne4 {[%clk 01:32:22]} {[%emt 00:00:18]} 8. Qc2 {[%clk
01:25:09]} {[%emt 00:02:11]} Nxc3 {[%clk 01:32:33]} {[%emt 00:00:18]} 9. Qxc3
{[%clk 01:25:32]} {[%emt 00:00:07]} Bf6 {[%clk 01:31:44]} {[%emt 00:01:19]} 10.
b4 {[%clk 01:18:02]} {[%emt 00:08:00]} Qe8 {[%clk 01:26:21]} {[%emt 00:05:52]}
11. Bb2 {[%clk 01:18:07]} {[%emt 00:00:25]} Nd7 {[%clk 01:25:19]} {[%emt
00:01:32]} 12. c5 {[%clk 01:13:56]} {[%emt 00:04:41]} e5 {[%clk 01:16:01]}
{[%emt 00:09:50]} 13. c6 {[%clk 01:09:58]} {[%emt 00:04:27]} bxc6 {[%clk
01:06:53]} {[%emt 00:09:39]} 14. Qxc6 {[%clk 01:08:53]} {[%emt 00:01:33]} Rb8
{[%clk 01:06:57]} {[%emt 00:00:27]} 15. dxe5 {[%clk 01:06:36]} {[%emt
00:02:47]} dxe5 {[%clk 01:04:14]} {[%emt 00:03:13]} 16. Qxc7 {[%clk 01:02:36]}
{[%emt 00:04:29]} e4 {[%clk 00:56:47]} {[%emt 00:07:58]} 17. Qc4+ {[%clk
01:00:35]} {[%emt 00:02:30]} Kh8 {[%clk 00:56:45]} {[%emt 00:00:32]} 18. Nd4
{[%clk 01:00:24]} {[%emt 00:00:41]} Ne5 {[%clk 00:53:47]} {[%emt 00:03:28]} 19.
Qc5 {[%clk 00:56:11]} {[%emt 00:04:43]} Bd7 {[%clk 00:49:03]} {[%emt 00:05:15]}
20. a3 {[%clk 00:55:08]} {[%emt 00:01:33]} a5 {[%clk 00:42:41]} {[%emt
00:06:52]} 21. Rfc1 {[%clk 00:49:42]} {[%emt 00:05:55]} axb4 {[%clk 00:36:35]}
{[%emt 00:06:37]} 22. axb4 {[%clk 00:50:06]} {[%emt 00:00:05]} Qf7 {[%clk
00:36:13]} {[%emt 00:00:52]} 23. Ra7 {[%clk 00:49:57]} {[%emt 00:00:40]} Rfc8
{[%clk 00:33:07]} {[%emt 00:03:35]} 24. Rc7 {[%clk 00:37:46]} {[%emt 00:12:42]}
Rxc7 {[%clk 00:31:33]} {[%emt 00:02:04]} 25. Qxc7 {[%clk 00:38:10]} {[%emt
00:00:05]} Rxb4 {[%clk 00:25:44]} {[%emt 00:06:20]} 26. Ba1 {[%clk 00:32:36]}
{[%emt 00:06:03]} Qe8 {[%clk 00:20:37]} {[%emt 00:05:37]} 27. Bh3 {[%clk
00:29:29]} {[%emt 00:03:36]} Ng4 {[%clk 00:16:16]} {[%emt 00:04:51]} 28. Bxg4
{[%clk 00:28:39]} {[%emt 00:01:20]} fxg4 {[%clk 00:15:23]} {[%emt 00:01:23]} 29.
Nc2 {[%clk 00:27:39]} {[%emt 00:01:30]} Bxa1 {[%clk 00:14:45]} {[%emt
00:01:08]} 30. Nxb4 {[%clk 00:27:21]} {[%emt 00:00:49]} Be5 {[%clk 00:14:53]}
{[%emt 00:00:21]} 31. Qc5 {[%clk 00:26:19]} {[%emt 00:01:32]} h6 {[%clk
00:14:46]} {[%emt 00:00:38]} 32. Nc6 {[%clk 00:25:10]} {[%emt 00:01:39]} Bf6
{[%clk 00:14:53]} {[%emt 00:00:23]} 33. e3 {[%clk 00:24:43]} {[%emt 00:00:57]}
Qe6 {[%clk 00:14:46]} {[%emt 00:00:37]} 34. Nd4 {[%clk 00:21:27]} {[%emt
00:03:46]} Qa2 {[%clk 00:14:49]} {[%emt 00:00:27]} 35. Qc2 {[%clk 00:19:27]}
{[%emt 00:02:30]} Qd5 {[%clk 00:14:09]} {[%emt 00:01:10]} 36. Qc4 {[%clk
00:19:44]} {[%emt 00:00:12]} Qg5 {[%clk 00:14:10]} {[%emt 00:00:29]} 37. Qc5
{[%clk 00:18:48]} {[%emt 00:01:26]} Qg6 {[%clk 00:13:14]} {[%emt 00:01:27]} 38.
Qd6 {[%clk 00:18:42]} {[%emt 00:00:36]} Bf5 {[%clk 00:12:27]} {[%emt 00:01:16]}
39. Nxf5 {[%clk 00:16:53]} {[%emt 00:02:19]} Qxf5 {[%clk 00:12:52]} {[%emt
00:00:06]} 40. Qb8+ {[%clk 00:12:45]} {[%emt 00:04:37]} Kh7 {[%clk 00:13:14]}
{[%emt 00:00:09]} 41. Qb1 {[%clk 00:13:05]} {[%emt 00:00:10]} Qd5 {[%clk
00:11:50]} {[%emt 00:01:54]} 42. Rd1 {[%clk 00:12:01]} {[%emt 00:01:34]} Qf5
{[%clk 00:12:04]} {[%emt 00:00:16]} 43. Rd6 {[%clk 00:11:26]} {[%emt 00:01:04]}
Bg5 {[%clk 00:12:00]} {[%emt 00:00:35]} 44. Rd4 {[%clk 00:11:34]} {[%emt
00:00:22]} 1-0

[Event "SS Manhem Chess Week 2022: Goteborg Open"]
[Site "Schackcentrum, Vegagatan 20, Gothenburg, Sweden"]
[Date "2022.08.13"]
[Round "5.5"]
[White "Fransson, Lennart"]
[Black "Pettersson, Anders"]
[Result "1/2-1/2"]
[TimeControl "15 minutes + 5 seconds per move from move one (Round 1 - 4) / 90 minutes + 30 seconds per move from move one (Round 5 - 8)"]
[WhiteFideId "1706756"]
[BlackFideId "1715143"]
[WhiteElo "1958"]
[BlackElo "2042"]

1. c4 {[%clk 01:30:41]} {[%emt 00:00:18]} e6 {[%clk 01:30:50]} {[%emt
00:00:11]} 2. g3 {[%clk 01:31:03]} {[%emt 00:00:07]} d5 {[%clk 01:31:14]}
{[%emt 00:00:07]} 3. Bg2 {[%clk 01:31:25]} {[%emt 00:00:08]} Nf6 {[%clk
01:30:59]} {[%emt 00:00:45]} 4. Nf3 {[%clk 01:31:06]} {[%emt 00:00:49]} c5
{[%clk 01:30:30]} {[%emt 00:01:00]} 5. O-O {[%clk 01:28:58]} {[%emt 00:02:37]}
d4 {[%clk 01:29:25]} {[%emt 00:01:36]} 6. e3 {[%clk 01:27:44]} {[%emt
00:01:44]} Nc6 {[%clk 01:29:47]} {[%emt 00:00:08]} 7. exd4 {[%clk 01:27:53]}
{[%emt 00:00:20]} cxd4 {[%clk 01:30:10]} {[%emt 00:00:08]} 8. d3 {[%clk
01:27:01]} {[%emt 00:01:21]} h6 {[%clk 01:27:54]} {[%emt 00:02:47]} 9. Na3
{[%clk 01:24:34]} {[%emt 00:02:56]} Bc5 {[%clk 01:23:36]} {[%emt 00:04:49]} 10.
Re1 {[%clk 01:23:03]} {[%emt 00:02:00]} O-O {[%clk 01:23:20]} {[%emt 00:00:46]}
11. Nc2 {[%clk 01:22:07]} {[%emt 00:01:26]} Re8 {[%clk 01:20:43]} {[%emt
00:03:07]} 12. a3 {[%clk 01:16:51]} {[%emt 00:05:46]} a5 {[%clk 01:20:58]}
{[%emt 00:00:16]} 13. b3 {[%clk 01:16:44]} {[%emt 00:00:36]} e5 {[%clk
01:14:48]} {[%emt 00:06:41]} 14. Nd2 {[%clk 01:14:36]} {[%emt 00:02:37]} Bg4
{[%clk 01:10:53]} {[%emt 00:04:25]} 15. f3 {[%clk 01:07:32]} {[%emt 00:07:34]}
Bh5 {[%clk 01:08:51]} {[%emt 00:02:32]} 16. Rb1 {[%clk 01:06:50]} {[%emt
00:01:12]} Qd6 {[%clk 01:02:05]} {[%emt 00:07:16]} 17. g4 {[%clk 01:05:27]}
{[%emt 00:01:52]} Bg6 {[%clk 00:58:46]} {[%emt 00:03:50]} 18. Ne4 {[%clk
01:00:38]} {[%emt 00:05:19]} Bxe4 {[%clk 00:59:08]} {[%emt 00:00:09]} 19. fxe4
{[%clk 01:00:55]} {[%emt 00:00:14]} Rab8 {[%clk 00:51:29]} {[%emt 00:08:08]} 20.
h4 {[%clk 00:56:46]} {[%emt 00:04:38]} Nh7 {[%clk 00:43:10]} {[%emt 00:08:50]}
21. g5 {[%clk 00:54:46]} {[%emt 00:02:29]} hxg5 {[%clk 00:43:20]} {[%emt
00:00:21]} 22. hxg5 {[%clk 00:55:07]} {[%emt 00:00:07]} Qg6 {[%clk 00:40:18]}
{[%emt 00:03:33]} 23. Bh3 {[%clk 00:50:59]} {[%emt 00:04:37]} Ne7 {[%clk
00:27:09]} {[%emt 00:13:40]} 24. Qg4 {[%clk 00:40:41]} {[%emt 00:10:48]} b5
{[%clk 00:24:54]} {[%emt 00:02:46]} 25. cxb5 {[%clk 00:40:19]} {[%emt
00:00:51]} Rxb5 {[%clk 00:25:14]} {[%emt 00:00:10]} 26. b4 {[%clk 00:38:53]}
{[%emt 00:01:56]} axb4 {[%clk 00:23:12]} {[%emt 00:02:32]} 27. axb4 {[%clk
00:38:25]} {[%emt 00:00:57]} Reb8 {[%clk 00:22:18]} {[%emt 00:01:24]} 28. Bd2
{[%clk 00:38:05]} {[%emt 00:00:50]} Qc6 {[%clk 00:14:27]} {[%emt 00:08:22]} 29.
Rbc1 {[%clk 00:28:58]} {[%emt 00:09:36]} Bd6 {[%clk 00:09:15]} {[%emt
00:05:43]} 30. Na3 {[%clk 00:29:05]} {[%emt 00:00:24]} Qb6 {[%clk 00:09:14]}
{[%emt 00:00:31]} 31. Nxb5 {[%clk 00:29:18]} {[%emt 00:00:17]} Qxb5 {[%clk
00:09:42]} {[%emt 00:00:01]} 32. Qf3 {[%clk 00:28:29]} {[%emt 00:01:18]} Bxb4
{[%clk 00:07:46]} {[%emt 00:02:28]} 33. Rb1 {[%clk 00:26:53]} {[%emt 00:02:05]}
Qa5 {[%clk 00:08:13]} {[%emt 00:00:04]} 34. Ra1 {[%clk 00:25:07]} {[%emt
00:02:15]} Qd8 {[%clk 00:06:31]} {[%emt 00:02:12]} 35. Bxb4 {[%clk 00:19:48]}
{[%emt 00:05:49]} Nxg5 {[%clk 00:06:00]} {[%emt 00:01:02]} 36. Qg3 {[%clk
00:19:45]} {[%emt 00:00:32]} Nxh3+ {[%clk 00:06:26]} {[%emt 00:00:04]} 37. Qxh3
{[%clk 00:20:06]} {[%emt 00:00:08]} Rxb4 {[%clk 00:06:54]} {[%emt 00:00:04]} 38.
Rec1 {[%clk 00:19:46]} {[%emt 00:00:49]} Rb8 {[%clk 00:05:37]} {[%emt
00:01:48]} 39. Ra7 {[%clk 00:16:37]} {[%emt 00:03:39]} Ng6 {[%clk 00:03:10]}
{[%emt 00:02:57]} 40. Qf5 {[%clk 00:13:07]} {[%emt 00:03:59]} Qf6 {[%clk
00:03:39]} {[%emt 00:00:02]} 41. Rc8+ {[%clk 00:09:12]} {[%emt 00:04:24]} Rxc8
{[%clk 00:04:01]} {[%emt 00:00:08]} 42. Qxc8+ {[%clk 00:09:35]} {[%emt
00:00:07]} Nf8 {[%clk 00:02:55]} {[%emt 00:01:36]} 43. Qf5 {[%clk 00:06:31]}
{[%emt 00:03:33]} Qg6+ {[%clk 00:02:16]} {[%emt 00:01:11]} 44. Kf2 {[%clk
00:05:45]} {[%emt 00:01:15]} f6 {[%clk 00:01:43]} {[%emt 00:01:04]} 45. Ra8
{[%clk 00:04:40]} {[%emt 00:01:34]} Qh6 {[%clk 00:01:32]} {[%emt 00:00:42]} 46.
Qe6+ {[%clk 00:04:17]} {[%emt 00:00:52]} Kh7 {[%clk 00:01:47]} {[%emt
00:00:16]} 47. Rxf8 {[%clk 00:04:19]} {[%emt 00:00:27]} Qe3+ {[%clk 00:01:40]}
{[%emt 00:00:38]} 48. Kg2 {[%clk 00:04:32]} {[%emt 00:00:16]} Qe2+ {[%clk
00:01:57]} {[%emt 00:00:14]} 49. Kh1 {[%clk 00:03:37]} {[%emt 00:01:23]}
1/2-1/2

[Event "SS Manhem Chess Week 2022: Goteborg Open"]
[Site "Schackcentrum, Vegagatan 20, Gothenburg, Sweden"]
[Date "2022.08.13"]
[Round "5.6"]
[White "Ghaderi, Noan"]
[Black "Wahlstrom, Lennart"]
[Result "0-1"]
[TimeControl "15 minutes + 5 seconds per move from move one (Round 1 - 4) / 90 minutes + 30 seconds per move from move one (Round 5 - 8)"]
[WhiteFideId "1747096"]
[BlackFideId "1706829"]
[WhiteElo "1367"]
[BlackElo "2115"]

1. e4 {[%clk 01:30:59]} e5 {[%clk 01:30:54]} {[%emt 00:00:07]} 2. Nf3 {[%clk
01:31:23]} {[%emt 00:00:06]} Nc6 {[%clk 01:31:18]} {[%emt 00:00:06]} 3. d4
{[%clk 01:30:36]} {[%emt 00:01:17]} exd4 {[%clk 01:31:35]} {[%emt 00:00:13]} 4.
Bc4 {[%clk 01:30:26]} {[%emt 00:00:40]} Nf6 {[%clk 01:31:29]} {[%emt 00:00:35]}
5. Nxd4 {[%clk 01:29:27]} {[%emt 00:01:30]} d6 {[%clk 01:29:19]} {[%emt
00:02:39]} 6. Nc3 {[%clk 01:29:29]} {[%emt 00:00:29]} Be7 {[%clk 01:28:17]}
{[%emt 00:01:32]} 7. O-O {[%clk 01:29:24]} {[%emt 00:00:35]} O-O {[%clk
01:27:56]} {[%emt 00:00:51]} 8. Re1 {[%clk 01:28:00]} {[%emt 00:01:54]} Nd7
{[%clk 01:24:25]} {[%emt 00:04:00]} 9. Bf4 {[%clk 01:22:47]} {[%emt 00:05:43]}
Bf6 {[%clk 01:21:37]} {[%emt 00:03:17]} 10. Nxc6 {[%clk 01:22:17]} {[%emt
00:01:01]} bxc6 {[%clk 01:22:00]} {[%emt 00:00:08]} 11. Qf3 {[%clk 01:14:45]}
{[%emt 00:08:02]} Ne5 {[%clk 01:16:55]} {[%emt 00:05:34]} 12. Bxe5 {[%clk
01:15:07]} {[%emt 00:00:09]} Bxe5 {[%clk 01:17:14]} {[%emt 00:00:11]} 13. Na4
{[%clk 01:11:41]} {[%emt 00:03:56]} Bd7 {[%clk 01:13:19]} {[%emt 00:04:25]} 14.
Bb3 {[%clk 01:08:18]} {[%emt 00:03:53]} Kh8 {[%clk 01:07:34]} {[%emt 00:06:14]}
15. Rad1 {[%clk 01:07:12]} {[%emt 00:01:36]} f5 {[%clk 00:56:58]} {[%emt
00:11:06]} 16. exf5 {[%clk 01:04:52]} {[%emt 00:02:51]} Rxf5 {[%clk 00:56:51]}
{[%emt 00:00:37]} 17. Qd3 {[%clk 01:02:21]} {[%emt 00:03:01]} Qf6 {[%clk
00:48:26]} {[%emt 00:08:54]} 18. Re2 {[%clk 01:00:56]} {[%emt 00:01:56]} Rf8
{[%clk 00:46:39]} {[%emt 00:02:16]} 19. f3 {[%clk 01:00:39]} {[%emt 00:00:48]}
Qh6 {[%clk 00:43:57]} {[%emt 00:03:11]} 20. g3 {[%clk 00:57:00]} {[%emt
00:04:10]} Rxf3 {[%clk 00:42:54]} {[%emt 00:01:34]} 21. Qd2 {[%clk 00:55:34]}
{[%emt 00:01:55]} Bh3 {[%clk 00:42:13]} {[%emt 00:01:10]} 0-1

[Event "SS Manhem Chess Week 2022: Goteborg Open"]
[Site "Schackcentrum, Vegagatan 20, Gothenburg, Sweden"]
[Date "2022.08.13"]
[Round "5.10"]
[White "Wickstrom, Lars"]
[Black "Hammar, Arvid"]
[Result "1-0"]
[TimeControl "15 minutes + 5 seconds per move from move one (Round 1 - 4) / 90 minutes + 30 seconds per move from move one (Round 5 - 8)"]
[WhiteFideId "1770837"]
[BlackFideId "1735977"]
[WhiteElo "1753"]
[BlackElo "1384"]

1. e4 {[%clk 01:30:58]} {[%emt 00:00:02]} e5 {[%clk 01:30:58]} {[%emt
00:00:02]} 2. Nf3 {[%clk 01:31:20]} {[%emt 00:00:07]} Nc6 {[%clk 01:31:15]}
{[%emt 00:00:14]} 3. d4 {[%clk 01:31:37]} {[%emt 00:00:13]} exd4 {[%clk
01:31:15]} {[%emt 00:00:30]} 4. Nxd4 {[%clk 01:32:00]} {[%emt 00:00:07]} Bc5
{[%clk 01:31:20]} {[%emt 00:00:25]} 5. Be3 {[%clk 01:32:06]} {[%emt 00:00:24]}
Bxd4 {[%clk 01:31:10]} {[%emt 00:00:38]} 6. Bxd4 {[%clk 01:32:30]} {[%emt
00:00:08]} Nf6 {[%clk 01:31:30]} {[%emt 00:00:09]} 7. e5 {[%clk 01:27:05]}
{[%emt 00:05:58]} Nd5 {[%clk 01:29:16]} {[%emt 00:02:42]} 8. Bc4 {[%clk
01:18:20]} {[%emt 00:09:14]} Nf4 {[%clk 01:25:33]} {[%emt 00:04:13]} 9. Qg4
{[%clk 01:09:17]} {[%emt 00:09:34]} g5 {[%clk 01:17:31]} {[%emt 00:08:31]} 10.
Qd1 {[%clk 00:55:52]} {[%emt 00:13:56]} Nxd4 {[%clk 01:14:57]} {[%emt
00:03:03]} 11. Qxd4 {[%clk 00:54:55]} {[%emt 00:01:27]} d5 {[%clk 01:13:21]}
{[%emt 00:02:05]} 12. exd6 {[%clk 00:51:39]} {[%emt 00:03:47]} O-O {[%clk
01:11:56]} {[%emt 00:01:55]} 13. O-O {[%clk 00:51:34]} {[%emt 00:00:36]} cxd6
{[%clk 01:10:59]} {[%emt 00:01:26]} 14. Nc3 {[%clk 00:50:07]} {[%emt 00:01:57]}
b6 {[%clk 01:08:31]} {[%emt 00:02:58]} 15. Ne4 {[%clk 00:42:37]} {[%emt
00:08:00]} Nh5 {[%clk 00:59:59]} {[%emt 00:09:01]} 16. Rad1 {[%clk 00:35:53]}
{[%emt 00:07:16]} Qe7 {[%clk 00:54:58]} {[%emt 00:05:23]} 17. Rfe1 {[%clk
00:31:17]} {[%emt 00:05:14]} Be6 {[%clk 00:52:37]} {[%emt 00:02:50]} 18. Bxe6
{[%clk 00:27:57]} {[%emt 00:03:50]} fxe6 {[%clk 00:52:42]} {[%emt 00:00:23]} 19.
Qxd6 {[%clk 00:27:01]} {[%emt 00:01:29]} Qxd6 {[%clk 00:50:56]} {[%emt
00:02:14]} 20. Rxd6 {[%clk 00:27:18]} {[%emt 00:00:15]} h6 {[%clk 00:43:49]}
{[%emt 00:07:36]} 21. Rxe6 {[%clk 00:26:11]} {[%emt 00:01:38]} Kg7 {[%clk
00:43:41]} {[%emt 00:00:38]} 22. g3 {[%emt 00:07:41]} Rae8 {[%clk 00:38:15]}
{[%emt 00:00:26]} 23. Nd6 {[%clk 00:23:37]} {[%emt 00:01:23]} Rxe6 {[%clk
00:37:55]} {[%emt 00:00:48]} 24. Rxe6 {[%clk 00:23:54]} {[%emt 00:00:15]} a5
{[%clk 00:37:28]} {[%emt 00:00:57]} 25. Nc4 {[%clk 00:19:39]} {[%emt 00:04:45]}
Rc8 {[%clk 00:37:23]} {[%emt 00:00:34]} 26. Ne3 {[%clk 00:19:48]} {[%emt
00:00:22]} Nf6 {[%clk 00:37:17]} {[%emt 00:00:36]} 27. Rxb6 {[%clk 00:19:33]}
{[%emt 00:00:45]} g4 {[%clk 00:37:30]} {[%emt 00:00:16]} 28. Nf5+ {[%emt
00:01:26]} Kh7 {[%clk 00:37:09]} {[%emt 00:00:25]} 29. Rxf6 {[%clk 00:19:21]}
{[%emt 00:00:12]} Rxc2 {[%clk 00:37:26]} {[%emt 00:00:14]} 30. Rxh6+ {[%clk
00:19:41]} {[%emt 00:00:11]} Kg8 {[%clk 00:37:42]} {[%emt 00:00:14]} 31. Rb6
{[%clk 00:20:01]} {[%emt 00:00:10]} a4 {[%clk 00:37:51]} {[%emt 00:00:20]} 32.
Ne3 {[%clk 00:19:48]} {[%emt 00:00:44]} Rc1+ {[%clk 00:38:02]} {[%emt
00:00:18]} 33. Kg2 {[%clk 00:20:14]} {[%emt 00:00:04]} Rb1 {[%clk 00:38:23]}
{[%emt 00:00:09]} 34. Rb4 {[%clk 00:19:59]} {[%emt 00:00:45]} a3 {[%clk
00:38:19]} {[%emt 00:00:34]} 35. bxa3 {[%clk 00:20:25]} {[%emt 00:00:04]} Ra1
{[%clk 00:38:37]} {[%emt 00:00:12]} 36. Rxg4+ {[%clk 00:20:50]} {[%emt
00:00:05]} 1-0